fUSD/lending_fUSD_20251014
["ID","MTS","AMOUNT","RATE_DAILY","PERIOD"]
[391291334,1760470284132,-500.0,0.00016986,2]
[391291335,1760470284142,-6059.59,0.00016986,2]
[391291336,1760470284151,-768.7,0.00016986,2]
[391291337,1760470284161,-1848.08,0.00016986,2]
[391291338,1760470284170,-500.0,0.00016986,2]
[391291339,1760470284180,-742.68,0.00016986,2]
[391291340,1760470284189,-1628.55,0.00016986,2]
[391291341,1760470284199,-500.0,0.00016986,2]
[391291342,1760470284209,-500.0,0.00016986,2]
[391291343,1760470284219,-1839.83,0.00016986,2]
[391291344,1760470284228,-1438.2,0.00016986,2]
[391291345,1760470284238,-500.0,0.00016986,2]
[391291346,1760470284247,-867.7,0.00016986,2]
[391291347,1760470284257,-500.0,0.00016986,2]
[391291348,1760470284267,-2842.34,0.00016986,2]
[391291349,1760470284276,-668.29,0.00016986,2]
[391291350,1760470284286,-577.73,0.00016986,2]
[391291351,1760470284295,-1275.83,0.00016986,2]
[391291352,1760470284305,-164.82411981,0.00016986,2]
[391291353,1760470284315,-500.0,0.00016986,2]
[391291354,1760470284325,-660.44,0.00016986,2]
[391291355,1760470284334,-2184.34,0.00016986,2]
[391291356,1760470284343,-822.43,0.00016986,2]
[391291357,1760470284352,-500.0,0.00016986,2]
[391291358,1760470284362,-823.92,0.00016986,2]
[391291359,1760470284371,-1163.95,0.00016986,2]
[391291360,1760470284383,-568.93,0.00016986,2]
[391291361,1760470284396,-1583.46,0.00016986,2]
[391291362,1760470284405,-640.87,0.00016986,2]
[391291363,1760470284414,-500.0,0.00016986,2]
[391291364,1760470284423,-328.42747655,0.00016986,2]
[391291365,1760470284432,-547.36,0.00016986,2]
[391291366,1760470284441,-500.0,0.00016986,2]
[391291367,1760470284450,-500.0,0.00016986,2]
[391291368,1760470284460,-635.26,0.00016986,2]
[391291369,1760470284469,-2511.43,0.00016986,2]
[391291370,1760470284479,-1535.43,0.00016986,2]
[391291371,1760470284488,-1241.62,0.00016986,2]
[391291372,1760470284497,-879.44,0.00016986,2]
[391291373,1760470284506,-883.03,0.00016986,2]
[391291374,1760470284515,-3858.25,0.00016986,2]
[391291375,1760470284524,-1178.98,0.00016986,2]
[391291376,1760470284533,-1286.04,0.00016986,2]
[391291377,1760470284542,-540.2,0.00016986,2]
[391291378,1760470284551,-1672.26,0.00016986,2]
[391291379,1760470284560,-500.0,0.00016986,2]
[391291380,1760470284569,-844.9,0.00016986,2]
[391291381,1760470284578,-957.32,0.00016986,2]
[391291382,1760470284587,-1660.48,0.00016986,2]
[391291383,1760470284596,-500.0,0.00016986,2]
[391291384,1760470284604,-500.0,0.00016986,2]
[391291385,1760470284614,-500.0,0.00016986,2]
[391291386,1760470284624,-1500.57,0.00016986,2]
[391291387,1760470284633,-634.75,0.00016986,2]
[391291388,1760470284642,-500.0,0.00016986,2]
[391291389,1760470284651,-500.0,0.00016986,2]
[391291390,1760470284660,-500.0,0.00016986,2]
[391291391,1760470284669,-3980.53,0.00016986,2]
[391291392,1760470284679,-500.0,0.00016986,2]
[391291393,1760470284688,-2823.14,0.00016986,2]
[391291394,1760470284697,-500.0,0.00016986,2]
[391291395,1760470284706,-500.0,0.00016986,2]
[391291396,1760470284715,-2072.52,0.00016986,2]
[391291397,1760470284724,-500.0,0.00016986,2]
[391291398,1760470284733,-1494.42,0.00016986,2]
[391291399,1760470284742,-500.0,0.00016986,2]
[391291400,1760470284751,-500.0,0.00016986,2]
[391291401,1760470284760,-1706.92,0.00016986,2]
[391291402,1760470284769,-500.0,0.00016986,2]
[391291403,1760470284779,-5357.39,0.00016986,2]
[391291404,1760470284788,-500.0,0.00016986,2]
[391291405,1760470284797,-500.0,0.00016986,2]
[391291406,1760470284806,-500.0,0.00016986,2]
[391291407,1760470284815,-1221.47,0.00016986,2]
[391291408,1760470284824,-500.0,0.00016986,2]
[391291409,1760470284833,-978.13,0.00016986,2]
[391291410,1760470284842,-2213.18,0.00016986,2]
[391291411,1760470284851,-2116.87,0.00016986,2]
[391291412,1760470284859,-500.0,0.00016986,2]
[391291413,1760470284869,-1456.16,0.00016986,2]
[391291414,1760470284878,-500.0,0.00016986,2]
[391291415,1760470284887,-2039.98,0.00016986,2]
[391291416,1760470284896,-1164.19,0.00016986,2]
[391291417,1760470284905,-1799.54,0.00016986,2]
[391291418,1760470284914,-500.0,0.00016986,2]
[391291419,1760470284923,-500.0,0.00016986,2]
[391291420,1760470284932,-962.37,0.00016986,2]
[391291421,1760470284941,-2207.73,0.00016986,2]
[391291422,1760470284949,-500.0,0.00016986,2]
[391291423,1760470284958,-500.0,0.00016986,2]
[391291424,1760470284966,-500.0,0.00016986,2]
[391291425,1760470284975,-939.32,0.00016986,2]
[391291426,1760470284983,-970.05,0.00016986,2]
[391291427,1760470284992,-747.36,0.00016986,2]
[391291428,1760470285001,-2163.0,0.00016986,2]
[391291429,1760470285011,-566.61,0.00016986,2]
[391291430,1760470285019,-1711.37,0.00016986,2]
[391291431,1760470285028,-1861.39,0.00016986,2]
[391291432,1760470285037,-739.01,0.00016986,2]
[391291433,1760470285046,-500.0,0.00016986,2]
[391291434,1760470285055,-500.0,0.00016986,2]
[391291435,1760470285063,-500.0,0.00016986,2]
[391291436,1760470285072,-256.71213202,0.00016986,2]
[391291437,1760470285081,-2132.14,0.00016986,2]
[391291438,1760470285090,-2856.1,0.00016986,2]
[391291439,1760470285099,-508.36,0.00016986,2]
[391291440,1760470285108,-500.0,0.00016986,2]
[391291441,1760470285117,-546.08,0.00016986,2]
[391291442,1760470285128,-500.0,0.00016986,2]
[391291443,1760470285138,-500.0,0.00016986,2]
[391291444,1760470285147,-737.9,0.00016986,2]
[391291445,1760470285157,-500.0,0.00016986,2]
[391291446,1760470285166,-745.7,0.00016986,2]
[391291447,1760470285175,-997.08,0.00016986,2]
[391291448,1760470285183,-500.0,0.00016986,2]
[391291449,1760470285193,-500.0,0.00016986,2]
[391291450,1760470285204,-2061.78,0.00016986,2]
[391291451,1760470285213,-2150.3,0.00016986,2]
[391291452,1760470285222,-2000.2,0.00016986,2]
[391291453,1760470285231,-620.16,0.00016986,2]
[391291454,1760470285240,-8052.01,0.00016986,2]
[391291455,1760470285249,-3572.92,0.00016986,2]
[391291456,1760470285258,-500.0,0.00016986,2]
[391291457,1760470285267,-3061.31,0.00016986,2]
[391291458,1760470285276,-684.54,0.00016986,2]
[391291459,1760470285285,-3541.6,0.00016986,2]
[391291460,1760470285294,-938.18,0.00016986,2]
[391291461,1760470285303,-7503.9,0.00016986,2]
[391291462,1760470285312,-1487.6,0.00016986,2]
[391291463,1760470285321,-500.0,0.00016986,2]
[391291464,1760470285330,-500.0,0.00016986,2]
[391291465,1760470285339,-500.0,0.00016986,2]
[391291466,1760470285348,-500.0,0.00016986,2]
[391291467,1760470285356,-500.0,0.00016986,2]
[391291468,1760470285365,-500.0,0.00016986,2]
[391291469,1760470285375,-500.0,0.00016986,2]
[391291470,1760470285386,-500.0,0.00016986,2]
[391291471,1760470285397,-500.0,0.00016986,2]
[391291472,1760470285406,-500.0,0.00016986,2]
[391291473,1760470285415,-500.0,0.00016986,2]
[391291474,1760470285424,-1043.82,0.00016986,2]
[391291475,1760470285433,-4028.9,0.00016986,2]
[391291476,1760470285442,-1169.86,0.00016986,2]
[391291477,1760470285451,-500.0,0.00016986,2]
[391291478,1760470285461,-1439.27,0.00016986,2]
[391291479,1760470285470,-949.53,0.00016986,2]
[391291480,1760470285479,-500.0,0.00016986,2]
[391291481,1760470285488,-500.0,0.00016986,2]
[391291482,1760470285497,-500.0,0.00016986,2]
[391291483,1760470285507,-500.0,0.00016986,2]
[391291484,1760470285515,-500.0,0.00016986,2]
[391291485,1760470285524,-2516.02,0.00016986,2]
[391291486,1760470285533,-1022.31,0.00016986,2]
[391291487,1760470285542,-2298.98,0.00016986,2]
[391291488,1760470285551,-500.0,0.00016986,2]
[391291489,1760470285560,-1563.02,0.00016986,2]
[391291490,1760470285568,-578.7615721,0.00016986,2]
[391291491,1760470285577,-728.12,0.00016986,2]
[391291492,1760470285585,-500.0,0.00016986,2]
[391291493,1760470285594,-500.0,0.00016986,2]
[391291494,1760470285603,-500.0,0.00016986,2]
[391291495,1760470285612,-8556.41,0.00016986,2]
[391291496,1760470285621,-500.0,0.00016986,2]
[391291497,1760470285630,-500.0,0.00016986,2]
[391291498,1760470285639,-500.0,0.00016986,2]
[391291499,1760470285648,-500.0,0.00016986,2]
[391291500,1760470285657,-784.26,0.00016986,2]
[391291501,1760470285665,-767.04,0.00016986,2]
[391291502,1760470285674,-2910.67,0.00016986,2]
[391291503,1760470285682,-1704.56,0.00016986,2]
[391291504,1760470285691,-500.0,0.00016986,2]
[391291505,1760470285789,-500.0,0.00016986,2]
[391291506,1760470285798,-805.53,0.00016986,2]
[391291507,1760470285806,-500.0,0.00016986,2]
[391291508,1760470285815,-844.08,0.00016986,2]
[391291509,1760470285823,-500.0,0.00016986,2]
[391291510,1760470285832,-1349.7,0.00016986,2]
[391291511,1760470285841,-1008.94,0.00016986,2]
[391291512,1760470285850,-500.0,0.00016986,2]
[391291513,1760470285858,-2166.86,0.00016986,2]
[391291514,1760470285867,-151.0,0.00016986,2]
[391291515,1760470285875,-500.0,0.00016986,2]
[391291516,1760470285884,-1434.57,0.00016986,2]
[391291517,1760470285893,-555.68,0.00016986,2]
[391291518,1760470285902,-736.6,0.00016986,2]
[391291519,1760470285911,-645.28,0.00016986,2]
[391291520,1760470285919,-500.0,0.00016986,2]
[391291521,1760470285928,-630.95,0.00016986,2]
[391291522,1760470285937,-322.093332,0.00016986,2]
[391291523,1760470285946,-500.0,0.00016986,2]
[391291524,1760470285954,-322.093332,0.00016986,2]
[391291525,1760470285963,-259.494128,0.00016986,2]
[391291526,1760470285972,-1040.12,0.00016986,2]
[391291527,1760470285981,-322.093332,0.00016986,2]
[391291528,1760470285989,-590.69,0.00016986,2]
[391291529,1760470285998,-1310.52,0.00016986,2]
[391291530,1760470286006,-1413.57,0.00016986,2]
[391291531,1760470286015,-500.0,0.00016986,2]
[391291532,1760470286024,-966.64,0.00016986,2]
[391291533,1760470286033,-639.65,0.00016986,2]
[391291534,1760470286041,-322.093332,0.00016986,2]
[391291535,1760470286051,-4638.38,0.00016986,2]
[391291536,1760470286060,-577.65,0.00016986,2]
[391291537,1760470286068,-151.0,0.00016986,2]
[391291538,1760470286077,-151.0,0.00016986,2]
[391291539,1760470286086,-2962.26,0.00016986,2]
[391291540,1760470286095,-1137.18,0.00016986,2]
[391291541,1760470286103,-151.0,0.00016986,2]
[391291542,1760470286113,-699.56,0.00016986,2]
[391291543,1760470286122,-1123.21,0.00016986,2]
[391291544,1760470286132,-500.0,0.00016986,2]
[391291545,1760470286141,-151.0,0.00016986,2]
[391291546,1760470286150,-825.23,0.00016986,2]
[391291547,1760470286158,-151.0,0.00016986,2]
[391291548,1760470286167,-500.0,0.00016986,2]
[391291549,1760470286176,-940.64,0.00016986,2]
[391291550,1760470286185,-151.0,0.00016986,2]
[391291551,1760470286194,-530.21,0.00016986,2]
[391291552,1760470286203,-2813.0,0.00016986,2]
[391291553,1760470286212,-1663.66,0.00016986,2]
[391291554,1760470286222,-500.0,0.00016986,2]
[391291555,1760470286230,-151.0,0.00016986,2]
[391291556,1760470286239,-615.66,0.00016986,2]
[391291557,1760470286248,-1842.21,0.00016986,2]
[391291558,1760470286256,-774.72,0.00016986,2]
[391291559,1760470286265,-1279.0,0.00016986,2]
[391291560,1760470286274,-151.0,0.00016986,2]
[391291561,1760470286282,-500.0,0.00016986,2]
[391291562,1760470286291,-2860.82180831,0.00017,2]
[391291563,1760470286300,-250.0,0.00017,2]
[391291564,1760470286308,-6007.48,0.00017,2]
[391291565,1760470286318,-120337.87002707,0.00017,2]
[391291566,1760470286326,-1068.26577497,0.00017,2]
[391291567,1760470286335,-301.376383,0.00017,2]
[391291568,1760470286344,-151.0,0.00017,2]
[391291569,1760470286353,-151.0,0.00017,2]
[391291570,1760470286362,-602.78772,0.00017,2]
[391291571,1760470286371,-151.0,0.00017,2]
[391291572,1760470286383,-602.78772,0.00017,2]
[391291573,1760470286396,-241.054873,0.00017,2]
[391291574,1760470286405,-151.0,0.00017,2]
[391291575,1760470286414,-602.78772,0.00017,2]
[391291576,1760470286424,-200.307532,0.00017,2]
[391291577,1760470286433,-602.78772,0.00017,2]
[391291578,1760470286443,-10000.0,0.00017,2]
[391291579,1760470286452,-151.0,0.00017,2]
[391291580,1760470286462,-151.0,0.00017,2]
[391291581,1760470286471,-153.428311,0.00017,2]
[391291582,1760470286480,-151.0,0.00017,2]
[391291583,1760470286488,-151.0,0.00017,2]
[391291584,1760470286498,-151.0,0.00017,2]
[391291585,1760470286507,-151.0,0.00017,2]
[391291586,1760470286516,-151.0,0.00017,2]
[391291587,1760470286525,-151.0,0.00017,2]
[391291588,1760470286534,-151.0,0.00017,2]
[391291589,1760470286543,-151.0,0.00017,2]
[391291590,1760470286552,-175.809074,0.00017,2]
[391291591,1760470286561,-151.0,0.00017,2]
[391291592,1760470286570,-151.0,0.00017,2]
[391291593,1760470286578,-151.0,0.00017,2]
[391291594,1760470286587,-151.0,0.00017,2]
[391291595,1760470286596,-256.461261,0.00017,2]
[391291596,1760470286605,-256.461261,0.00017,2]
[391291597,1760470286614,-151.0,0.00017,2]
[391291598,1760470286623,-256.461261,0.00017,2]
[391291599,1760470286633,-151.0,0.00017,2]
[391291600,1760470286641,-256.461261,0.00017,2]
[391291601,1760470286650,-151.0,0.00017,2]
[391291602,1760470286659,-151.0,0.00017,2]
[391291603,1760470286668,-151.0,0.00017,2]
[391291604,1760470286677,-286.42671844,0.00017006,2]
[391291605,1760470286685,-474.58,0.00017012,2]
[391291606,1760470286694,-474.58,0.00017012,2]
[391291607,1760470286703,-474.58,0.00017012,2]
[391291608,1760470286712,-1000.0,0.00017021,2]
[391291609,1760470286721,-741.63868549,0.00017021,2]
[391291610,1760470286729,-1000.0,0.00017021,2]
[391291611,1760470286738,-1000.0,0.00017021,2]
[391291612,1760470286747,-1000.0,0.00017021,2]
[391291613,1760470286756,-1000.0,0.00017021,2]
[391291614,1760470286765,-591.67882616,0.00017021,2]
[391291615,1760470286774,-501.15727744,0.00017021,2]
[391291616,1760470286783,-1000.0,0.00017021,2]
[391291617,1760470286792,-1000.0,0.00017021,2]
[391291618,1760470286801,-1000.0,0.00017021,2]
[391291619,1760470286810,-1000.0,0.00017021,2]
[391291620,1760470286819,-1002.38570079,0.00017021,2]
[391291621,1760470286828,-1000.0,0.00017021,2]
[391291622,1760470286837,-980.79323202,0.00017021,2]
[391291623,1760470286846,-1000.0,0.00017021,2]
[391291624,1760470286855,-1000.0,0.00017021,2]
[391291625,1760470286863,-1000.0,0.00017021,2]
[391291626,1760470286872,-1000.0,0.00017021,2]
[391291627,1760470286882,-1000.0,0.00017021,2]
[391291628,1760470286890,-503.13858176,0.00017021,2]
[391291629,1760470286899,-503.80175749,0.00017021,2]
[391291630,1760470286908,-1000.0,0.00017021,2]
[391291631,1760470286917,-167.99,0.00017056,2]
[391291632,1760470286925,-966.22474038,0.00017064,2]
[391291633,1760470286935,-3716.18591676,0.00017064,2]
[391291634,1760470286943,-977.0,0.00017107,2]
[391291635,1760470286951,-547.74946164,0.00017151,2]
[391291636,1760470286960,-3716.18591676,0.0001716,2]
[391291637,1760470286969,-2500.0,0.00017164,2]
[391291638,1760470286978,-157.47,0.00017179,2]
[391291639,1760470286986,-1000.0,0.00017213,2]
[391291640,1760470286995,-300.0,0.00017259,2]
[391291641,1760470287004,-300.0,0.00017259,2]
[391291642,1760470287012,-300.0,0.00017259,2]
[391291643,1760470287021,-300.0,0.00017259,2]
[391291644,1760470287030,-300.0,0.00017259,2]
[391291645,1760470287039,-300.0,0.00017259,2]
[391291646,1760470287047,-300.0,0.00017259,2]
[391291647,1760470287056,-300.0,0.00017259,2]
[391291648,1760470287065,-511759.89253881,0.0001726,2]
[391291649,1760470287074,-8288.89121888,0.0001726,2]
[391291650,1760470287083,-153.498262,0.0001726,2]
[391291651,1760470287092,-356.002177,0.0001726,2]
[391291652,1760470287101,-270.138066,0.0001726,2]
[391291653,1760470287110,-270.138066,0.0001726,2]
[391291654,1760470287119,-216.820464,0.0001726,2]
[391291655,1760470287127,-3716.67029,0.0001726,2]
[391291656,1760470287136,-1954.656882,0.0001726,2]
[391291657,1760470287145,-3522.293525,0.0001726,2]
[391291658,1760470287154,-1016.04,0.0001726,2]
[391291659,1760470287163,-1270.21,0.0001726,2]
[391291660,1760470287171,-1217.28,0.0001726,2]
[391291661,1760470287180,-1480.48,0.0001726,2]
[391291662,1760470287188,-502.74520253,0.0001726,2]
[391291663,1760470287197,-1753.61,0.0001726,2]
[391291664,1760470287206,-500.0,0.0001726,2]
[391291665,1760470287214,-500.0,0.0001726,2]
[391291666,1760470287224,-1130.79,0.0001726,2]
[391291667,1760470287233,-535.61,0.0001726,2]
[391291668,1760470287241,-500.0,0.0001726,2]
[391291669,1760470287250,-1367.18,0.0001726,2]
[391291670,1760470287259,-3297.12,0.0001726,2]
[391291671,1760470287268,-898.87,0.0001726,2]
[391291672,1760470287278,-661.15,0.0001726,2]
[391291673,1760470287286,-552.91,0.0001726,2]
[391291674,1760470287295,-500.0,0.0001726,2]
[391291675,1760470287304,-1410.07,0.0001726,2]
[391291676,1760470287314,-500.0,0.0001726,2]
[391291677,1760470287322,-500.0,0.0001726,2]
[391291678,1760470287331,-703.39,0.0001726,2]
[391291679,1760470287340,-1557.16,0.0001726,2]
[391291680,1760470287350,-1047.56,0.0001726,2]
[391291681,1760470287359,-600.5,0.0001726,2]
[391291682,1760470287369,-500.0,0.0001726,2]
[391291683,1760470287378,-891.55,0.0001726,2]
[391291684,1760470287390,-645.01,0.0001726,2]
[391291685,1760470287400,-500.0,0.0001726,2]
[391291686,1760470287409,-902.56,0.0001726,2]
[391291687,1760470287418,-500.0,0.0001726,2]
[391291688,1760470287428,-500.0,0.0001726,2]
[391291689,1760470287437,-1136.29,0.0001726,2]
[391291690,1760470287446,-500.0,0.0001726,2]
[391291691,1760470287456,-500.0,0.0001726,2]
[391291692,1760470287467,-500.0,0.0001726,2]
[391291693,1760470287476,-500.0,0.0001726,2]
[391291694,1760470287484,-1473.97,0.0001726,2]
[391291695,1760470287493,-500.0,0.0001726,2]
[391291696,1760470287502,-1334.03,0.0001726,2]
[391291697,1760470287511,-500.0,0.0001726,2]
[391291698,1760470287520,-1490.74,0.0001726,2]
[391291699,1760470287529,-500.0,0.0001726,2]
[391291700,1760470287538,-500.0,0.0001726,2]
[391291701,1760470287547,-500.0,0.0001726,2]
[391291702,1760470287556,-500.0,0.0001726,2]
[391291703,1760470287565,-789.35,0.0001726,2]
[391291704,1760470287574,-2159.89,0.0001726,2]
[391291705,1760470287583,-612.88,0.0001726,2]
[391291706,1760470287592,-700.37,0.0001726,2]
[391291707,1760470287601,-883.13,0.0001726,2]
[391291708,1760470287610,-883.13,0.0001726,2]
[391291709,1760470287619,-500.0,0.0001726,2]
[391291710,1760470287630,-960.44,0.0001726,2]
[391291711,1760470287639,-840.38,0.0001726,2]
[391291712,1760470287650,-1041.65,0.0001726,2]
[391291713,1760470287659,-585.66,0.0001726,2]
[391291714,1760470287668,-500.0,0.0001726,2]
[391291715,1760470287677,-500.0,0.0001726,2]
[391291716,1760470287686,-1639.89,0.0001726,2]
[391291717,1760470287696,-406.62944029,0.0001726,2]
[391291718,1760470287705,-947.54,0.0001726,2]
[391291719,1760470287715,-500.0,0.0001726,2]
[391291720,1760470287724,-500.0,0.0001726,2]
[391291721,1760470287734,-1563.92,0.0001726,2]
[391291722,1760470287743,-500.0,0.0001726,2]
[391291723,1760470287752,-1905.46,0.0001726,2]
[391291724,1760470287761,-849.33,0.0001726,2]
[391291725,1760470287770,-1251.39,0.0001726,2]
[391291726,1760470287779,-749.46,0.0001726,2]
[391291727,1760470287788,-1114.36,0.0001726,2]
[391291728,1760470287797,-500.0,0.0001726,2]
[391291729,1760470287806,-881.45,0.0001726,2]
[391291730,1760470287815,-500.0,0.0001726,2]
[391291731,1760470287825,-402.56525818,0.0001726,2]
[391291732,1760470287834,-1652.81,0.0001726,2]
[391291733,1760470287843,-1695.89,0.0001726,2]
[391291734,1760470287852,-500.0,0.0001726,2]
[391291735,1760470287861,-500.0,0.0001726,2]
[391291736,1760470287871,-500.0,0.0001726,2]
[391291737,1760470287880,-154.861262,0.0001726,2]
[391291738,1760470287889,-259.27694113,0.0001726,2]
[391291739,1760470287898,-153.143197,0.0001726,2]
[391291740,1760470287907,-500.0,0.0001726,2]
[391291741,1760470287917,-1299.76,0.0001726,2]
[391291742,1760470287926,-500.0,0.0001726,2]
[391291743,1760470287935,-193.712746,0.0001726,2]
[391291744,1760470287944,-500.0,0.0001726,2]
[391291745,1760470287953,-500.0,0.0001726,2]
[391291746,1760470287962,-207.75398302,0.0001726,2]
[391291747,1760470287971,-500.0,0.0001726,2]
[391291748,1760470287980,-500.0,0.0001726,2]
[391291749,1760470287990,-588.97,0.0001726,2]
[391291750,1760470287998,-500.0,0.0001726,2]
[391291751,1760470288007,-500.0,0.0001726,2]
[391291752,1760470288017,-500.0,0.0001726,2]
[391291753,1760470288026,-500.0,0.0001726,2]
[391291754,1760470288035,-500.0,0.0001726,2]
[391291755,1760470288044,-500.0,0.0001726,2]
[391291756,1760470288054,-500.0,0.0001726,2]
[391291757,1760470288063,-500.0,0.0001726,2]
[391291758,1760470288071,-500.0,0.0001726,2]
[391291759,1760470288080,-1947.9,0.0001726,2]
[391291760,1760470288089,-1148.28,0.0001726,2]
[391291761,1760470288099,-500.0,0.0001726,2]
[391291762,1760470288108,-500.0,0.0001726,2]
[391291763,1760470288117,-500.0,0.0001726,2]
[391291764,1760470288126,-1967.11,0.0001726,2]
[391291765,1760470288135,-500.0,0.0001726,2]
[391291766,1760470288144,-1890.01,0.0001726,2]
[391291767,1760470288153,-500.0,0.0001726,2]
[391291768,1760470288163,-351.71345239,0.0001726,2]
[391291769,1760470288173,-500.0,0.0001726,2]
[391291770,1760470288182,-500.0,0.0001726,2]
[391291771,1760470288192,-969.98,0.0001726,2]
[391291772,1760470288202,-500.0,0.0001726,2]
[391291773,1760470288211,-609.72,0.0001726,2]
[391291774,1760470288220,-500.0,0.0001726,2]
[391291775,1760470288229,-1095.05,0.0001726,2]
[391291776,1760470288238,-500.0,0.0001726,2]
[391291777,1760470288247,-500.0,0.0001726,2]
[391291778,1760470288256,-1190.56,0.0001726,2]
[391291779,1760470288265,-500.0,0.0001726,2]
[391291780,1760470288275,-500.0,0.0001726,2]
[391291781,1760470288284,-500.0,0.0001726,2]
[391291782,1760470288293,-635.69721649,0.0001726,2]
[391291783,1760470288302,-500.0,0.0001726,2]
[391291784,1760470288311,-500.0,0.0001726,2]
[391291785,1760470288320,-1925.21,0.0001726,2]
[391291786,1760470288329,-500.0,0.0001726,2]
[391291787,1760470288339,-500.0,0.0001726,2]
[391291788,1760470288348,-899.42,0.0001726,2]
[391291789,1760470288357,-500.0,0.0001726,2]
[391291790,1760470288367,-500.0,0.0001726,2]
[391291791,1760470288376,-500.0,0.0001726,2]
[391291792,1760470288385,-500.0,0.0001726,2]
[391291793,1760470288397,-500.0,0.0001726,2]
[391291794,1760470288406,-1851.66,0.0001726,2]
[391291795,1760470288415,-500.0,0.0001726,2]
[391291796,1760470288424,-500.0,0.0001726,2]
[391291797,1760470288435,-1662.99,0.0001726,2]
[391291798,1760470288445,-500.0,0.0001726,2]
[391291799,1760470288454,-500.0,0.0001726,2]
[391291800,1760470288465,-500.0,0.0001726,2]
[391291801,1760470288474,-500.0,0.0001726,2]
[391291802,1760470288483,-500.0,0.0001726,2]
[391291803,1760470288492,-643.38,0.0001726,2]
[391291804,1760470288501,-500.0,0.0001726,2]
[391291805,1760470288510,-500.0,0.0001726,2]
[391291806,1760470288519,-500.0,0.0001726,2]
[391291807,1760470288529,-500.0,0.0001726,2]
[391291808,1760470288538,-545.59,0.0001726,2]
[391291809,1760470288547,-500.0,0.0001726,2]
[391291810,1760470288556,-500.0,0.0001726,2]
[391291811,1760470288566,-1563.54,0.0001726,2]
[391291812,1760470288575,-500.0,0.0001726,2]
[391291813,1760470288584,-500.0,0.0001726,2]
[391291814,1760470288593,-500.0,0.0001726,2]
[391291815,1760470288602,-486.05404003,0.0001726,2]
[391291816,1760470288611,-2066.64,0.0001726,2]
[391291817,1760470288621,-639.57,0.0001726,2]
[391291818,1760470288630,-500.0,0.0001726,2]
[391291819,1760470288639,-1135.3,0.0001726,2]
[391291820,1760470288648,-500.0,0.0001726,2]
[391291821,1760470288657,-1788.4,0.0001726,2]
[391291822,1760470288667,-500.0,0.0001726,2]
[391291823,1760470288676,-553.21,0.0001726,2]
[391291824,1760470288685,-574.43,0.0001726,2]
[391291825,1760470288694,-500.0,0.0001726,2]
[391291826,1760470288703,-500.0,0.0001726,2]
[391291827,1760470288713,-531.54769913,0.0001726,2]
[391291828,1760470288722,-500.0,0.0001726,2]
[391291829,1760470288731,-510.64,0.0001726,2]
[391291830,1760470288741,-639.53799143,0.0001726,2]
[391291831,1760470288750,-789.67,0.0001726,2]
[391291832,1760470288759,-672.5,0.0001726,2]
[391291833,1760470288768,-1162.65,0.0001726,2]